fUSD/lending_fUSD_20250911
["ID","MTS","AMOUNT","RATE_DAILY","PERIOD"]
[384930566,1757627548318,-2234.85,0.00029589,7]
[384930567,1757627548328,-1639.17,0.00029589,7]
[384930568,1757627548341,-2407.64,0.00029589,7]
[384930569,1757627548353,-400.0,0.00029589,7]
[384930570,1757627548363,-1046.34,0.00029589,7]
[384930571,1757627548373,-1220.02,0.00029589,7]
[384930572,1757627548382,-2770.33,0.00029589,7]
[384930573,1757627548392,-482.39,0.00029589,7]
[384930574,1757627548402,-436.15,0.00029589,7]
[384930575,1757627548412,-1846.46,0.00029589,7]
[384930576,1757627548422,-400.0,0.00029589,7]
[384930577,1757627548432,-400.0,0.00029589,7]
[384930578,1757627548442,-2184.88,0.00029589,7]
[384930579,1757627548451,-1730.33,0.00029589,7]
[384930580,1757627548461,-1786.28,0.00029589,7]
[384930581,1757627548470,-1957.68,0.00029589,7]
[384930582,1757627548480,-1265.01,0.00029589,7]
[384930583,1757627548490,-407.19,0.00029589,7]
[384930584,1757627548500,-688.3,0.00029589,7]
[384930585,1757627548510,-2703.11,0.00029589,7]
[384930586,1757627548520,-678.34,0.00029589,7]
[384930587,1757627548529,-2568.73,0.00029589,7]
[384930588,1757627548540,-3106.86,0.00029589,7]
[384930589,1757627548549,-1591.84,0.00029589,7]
[384930590,1757627548559,-423.35,0.00029589,7]
[384930591,1757627548568,-2512.36,0.00029589,7]
[384930592,1757627548577,-2358.62,0.00029589,7]
[384930593,1757627548587,-655.76,0.00029589,7]
[384930594,1757627548596,-655.88,0.00029589,7]
[384930595,1757627548606,-1989.93,0.00029589,7]
[384930596,1757627548615,-400.0,0.00029589,7]
[384930597,1757627548624,-6625.15,0.00029589,7]
[384930598,1757627548635,-400.0,0.00029589,7]
[384930599,1757627548646,-1565.73,0.00029589,7]
[384930600,1757627548655,-2433.07,0.00029589,7]
[384930601,1757627548664,-400.0,0.00029589,7]
[384930602,1757627548674,-2320.6,0.00029589,7]
[384930603,1757627548683,-1949.62,0.00029589,7]
[384930604,1757627548693,-400.0,0.00029589,7]
[384930605,1757627548702,-2218.78,0.00029589,7]
[384930606,1757627548712,-1700.41,0.00029589,7]
[384930607,1757627548722,-3743.48,0.00029589,7]
[384930608,1757627548731,-581.88,0.00029589,7]
[384930609,1757627548740,-601.83,0.00029589,7]
[384930610,1757627548750,-400.0,0.00029589,7]
[384930611,1757627548759,-2332.54,0.00029589,7]
[384930612,1757627548768,-2249.08,0.00029589,7]
[384930613,1757627548778,-726.15,0.00029589,7]
[384930614,1757627548788,-2742.88,0.00029589,7]
[384930615,1757627548799,-877.79,0.00029589,7]
[384930616,1757627548810,-2125.99,0.00029589,7]
[384930617,1757627548820,-400.0,0.00029589,7]
[384930618,1757627548829,-400.0,0.00029589,7]
[384930619,1757627548839,-1691.78,0.00029589,7]
[384930620,1757627548848,-1723.17,0.00029589,7]
[384930621,1757627548857,-2438.57,0.00029589,7]
[384930622,1757627548866,-2192.92,0.00029589,7]
[384930623,1757627548876,-2371.58,0.00029589,7]
[384930624,1757627548885,-882.4,0.00029589,7]
[384930625,1757627548895,-2985.19,0.00029589,7]
[384930626,1757627548904,-2972.96,0.00029589,7]
[384930627,1757627548914,-512.39,0.00029589,7]
[384930628,1757627548923,-849.58,0.00029589,7]
[384930629,1757627548933,-3150.88,0.00029589,7]
[384930630,1757627548943,-2678.71,0.00029589,7]
[384930631,1757627548954,-1003.52,0.00029589,7]
[384930632,1757627548966,-764.35,0.00029589,7]
[384930633,1757627548977,-2234.94,0.00029589,7]
[384930634,1757627548986,-2578.26,0.00029589,7]
[384930635,1757627548996,-1462.94,0.00029589,7]
[384930636,1757627549006,-1828.11,0.00029589,7]
[384930637,1757627549015,-470.08,0.00029589,7]
[384930638,1757627549025,-1307.56,0.00029589,7]
[384930639,1757627549034,-400.0,0.00029589,7]
[384930640,1757627549044,-1772.99,0.00029589,7]
[384930641,1757627549054,-2097.33,0.00029589,7]
[384930642,1757627549063,-933.0,0.00029589,7]
[384930643,1757627549073,-952.28,0.00029589,7]
[384930644,1757627549082,-1662.68,0.00029589,7]
[384930645,1757627549092,-610.96,0.00029589,7]
[384930646,1757627549101,-7841.89,0.00029589,7]
[384930647,1757627549110,-400.0,0.00029589,7]
[384930648,1757627549119,-400.0,0.00029589,7]
[384930649,1757627549129,-1604.78,0.00029589,7]
[384930650,1757627549139,-1587.28,0.00029589,7]
[384930651,1757627549149,-2174.86,0.00029589,7]
[384930652,1757627549158,-11061.06,0.00029589,7]
[384930653,1757627549168,-1272.03,0.00029589,7]
[384930654,1757627549178,-400.0,0.00029589,7]
[384930655,1757627549188,-596.32,0.00029589,7]
[384930656,1757627549198,-565.46,0.00029589,7]
[384930657,1757627549207,-2131.53,0.00029589,7]
[384930658,1757627549217,-2498.42,0.00029589,7]
[384930659,1757627549227,-6488.57,0.00029589,7]
[384930660,1757627549238,-5525.7,0.00029589,7]
[384930661,1757627549247,-1601.69,0.00029589,7]
[384930662,1757627549257,-455.17,0.00029589,7]
[384930663,1757627549267,-1668.79,0.00029589,7]
[384930664,1757627549277,-1352.16,0.00029589,7]
[384930665,1757627549287,-11877.61,0.00029589,7]
[384930666,1757627549297,-2986.7,0.00029589,7]
[384930667,1757627549307,-400.0,0.00029589,7]
[384930668,1757627549318,-400.0,0.00029589,7]
[384930669,1757627549327,-2328.89,0.00029589,7]
[384930670,1757627549338,-4724.84,0.00029589,7]
[384930671,1757627549349,-400.0,0.00029589,7]
[384930672,1757627549358,-2071.12,0.00029589,7]
[384930673,1757627549369,-3292.32,0.00029589,7]
[384930674,1757627549378,-400.0,0.00029589,7]
[384930675,1757627549389,-400.0,0.00029589,7]
[384930676,1757627549399,-657.95,0.00029589,7]
[384930677,1757627549409,-2017.2,0.00029589,7]
[384930678,1757627549420,-2362.15,0.00029589,7]
[384930679,1757627549430,-1981.94,0.00029589,7]
[384930680,1757627549440,-914.7,0.00029589,7]
[384930681,1757627549450,-710.2,0.00029589,7]
[384930682,1757627549460,-847.93,0.00029589,7]
[384930683,1757627549470,-1045.52,0.00029589,7]
[384930684,1757627549480,-752.72,0.00029589,7]
[384930685,1757627549490,-2021.8,0.00029589,7]
[384930686,1757627549500,-2367.19,0.00029589,7]
[384930687,1757627549510,-1204.45,0.00029589,7]
[384930688,1757627549520,-1922.67,0.00029589,7]
[384930689,1757627549529,-2147.9,0.00029589,7]
[384930690,1757627549540,-400.0,0.00029589,7]
[384930691,1757627549549,-610.19,0.00029589,7]
[384930692,1757627549560,-737.4,0.00029589,7]
[384930693,1757627549570,-2005.27,0.00029589,7]
[384930694,1757627549580,-2282.8,0.00029589,7]
[384930695,1757627549589,-868.86,0.00029589,7]
[384930696,1757627549598,-2067.86,0.00029589,7]
[384930697,1757627549608,-1662.86,0.00029589,7]
[384930698,1757627549617,-339.78,0.00029589,7]
[384930699,1757627549627,-581.46,0.00029589,7]
[384930700,1757627549638,-973.3,0.00029589,7]
[384930701,1757627549649,-2104.81,0.00029589,7]
[384930702,1757627549660,-901.74,0.00029589,7]
[384930703,1757627549670,-1564.75,0.00029589,7]
[384930704,1757627549680,-3042.61,0.00029589,7]
[384930705,1757627549690,-633.32,0.00029589,7]
[384930706,1757627549700,-406.9,0.00029589,7]
[384930707,1757627549709,-2798.29,0.00029589,7]
[384930708,1757627549719,-473.92,0.00029589,7]
[384930709,1757627549729,-1232.08,0.00029589,7]
[384930710,1757627549738,-825.48,0.00029589,7]
[384930711,1757627549747,-1649.61,0.00029589,7]
[384930712,1757627549757,-400.0,0.00029589,7]
[384930713,1757627549767,-400.0,0.00029589,7]
[384930714,1757627549776,-401.49,0.00029589,7]
[384930715,1757627549786,-493.86,0.00029589,7]
[384930716,1757627549795,-2428.81,0.00029589,7]
[384930717,1757627549804,-545.25,0.00029589,7]
[384930718,1757627549814,-3292.07,0.00029589,7]
[384930719,1757627549823,-400.0,0.00029589,7]
[384930720,1757627549833,-1770.26,0.00029589,7]
[384930721,1757627549842,-400.0,0.00029589,7]
[384930722,1757627549852,-400.0,0.00029589,7]
[384930723,1757627549861,-575.7,0.00029589,7]
[384930724,1757627549871,-1537.35,0.00029589,7]
[384930725,1757627549880,-2235.0,0.00029589,7]
[384930726,1757627549890,-400.0,0.00029589,7]
[384930727,1757627549900,-4315.46,0.00029589,7]
[384930728,1757627549910,-2043.23,0.00029589,7]
[384930729,1757627549920,-542.72,0.00029589,7]
[384930730,1757627549930,-497.85,0.00029589,7]
[384930731,1757627549939,-283.48634717,0.00029589,7]
[384930732,1757627549948,-774.82,0.00029589,7]
[384930733,1757627549958,-2030.44,0.00029589,7]
[384930734,1757627549967,-444.49,0.00029589,7]
[384930735,1757627549977,-400.0,0.00029589,7]
[384930736,1757627549987,-2457.19,0.00029589,7]
[384930737,1757627549996,-400.0,0.00029589,7]
[384930738,1757627550006,-2221.42,0.00029589,7]
[384930739,1757627550015,-2267.83,0.00029589,7]
[384930740,1757627550024,-400.0,0.00029589,7]
[384930741,1757627550033,-400.0,0.00029589,7]
[384930742,1757627550042,-1381.33,0.00029589,7]
[384930743,1757627550051,-400.0,0.00029589,7]
[384930744,1757627550060,-977.79,0.00029589,7]
[384930745,1757627550070,-400.0,0.00029589,7]
[384930746,1757627550079,-2044.64,0.00029589,7]
[384930747,1757627550089,-596.22,0.00029589,7]
[384930748,1757627550099,-400.0,0.00029589,7]
[384930749,1757627550109,-1597.41,0.00029589,7]
[384930750,1757627550120,-1990.61,0.00029589,7]
[384930751,1757627550130,-400.0,0.00029589,7]
[384930752,1757627550140,-1787.37,0.00029589,7]
[384930753,1757627550150,-196499.20478152,0.00029589,2]
[384930754,1757627550160,-328.05,0.00029615,2]
[384930755,1757627550170,-477.08784168,0.00029616,5]
[384930756,1757627550180,-250.0,0.00029621,5]
[384930757,1757627550190,-195.0,0.0002967,2]
[384930758,1757627550200,-1304.91497183,0.00029672,2]
[384930759,1757627550311,-166.45700361,0.00029763,15]
[384930760,1757627550321,-1362.18396746,0.00029797,2]
[384930761,1757627550330,-32546.65827074,0.000298,15]
[384930762,1757627550343,-916.40956825,0.00029827,2]
[384930763,1757627550352,-865.76099852,0.00029838,2]
[384930764,1757627550365,-277.3079719,0.00029863,7]
[384930765,1757627550375,-500.0,0.00029863,7]
[384930766,1757627550384,-585.99948303,0.00029863,7]
[384930767,1757627550394,-500.0,0.00029863,7]
[384930768,1757627550403,-500.0,0.00029863,7]
[384930769,1757627550412,-500.0,0.00029863,7]
[384930770,1757627550421,-500.0,0.00029863,7]
[384930771,1757627550431,-3492.0,0.00029863,7]
[384930772,1757627550440,-170.977076,0.00029863,7]
[384930773,1757627550450,-332.00561071,0.00029863,7]
[384930774,1757627550459,-2430.85,0.00029863,7]
[384930775,1757627550469,-537.34,0.00029863,7]
[384930776,1757627550478,-400.0,0.00029863,7]
[384930777,1757627550487,-436.24,0.00029863,7]
[384930778,1757627550496,-622.97,0.00029863,7]
[384930779,1757627550506,-400.0,0.00029863,7]
[384930780,1757627550516,-602.77,0.00029863,7]
[384930781,1757627550525,-1543.01,0.00029863,7]
[384930782,1757627550534,-400.0,0.00029863,7]
[384930783,1757627550544,-502.36,0.00029863,7]
[384930784,1757627550553,-607.91,0.00029863,7]
[384930785,1757627550562,-474.04,0.00029863,7]
[384930786,1757627550571,-422.29,0.00029863,7]
[384930787,1757627550580,-521.3,0.00029863,7]
[384930788,1757627550589,-578.72,0.00029863,7]
[384930789,1757627550599,-1554.85,0.00029863,7]
[384930790,1757627550608,-400.0,0.00029863,7]
[384930791,1757627550618,-400.0,0.00029863,7]
[384930792,1757627550627,-1824.84,0.00029863,7]
[384930793,1757627550636,-1088.02,0.00029863,7]
[384930794,1757627550646,-1205.28,0.00029863,7]
[384930795,1757627550656,-432.28,0.00029863,7]
[384930796,1757627550665,-400.0,0.00029863,7]
[384930797,1757627550674,-400.0,0.00029863,7]
[384930798,1757627550683,-832.75,0.00029863,7]
[384930799,1757627550692,-400.0,0.00029863,7]
[384930800,1757627550701,-904.85,0.00029863,7]
[384930801,1757627550711,-685.8,0.00029863,7]
[384930802,1757627550720,-517.06,0.00029863,7]
[384930803,1757627550730,-1008.26,0.00029863,7]
[384930804,1757627550739,-1113.46,0.00029863,7]
[384930805,1757627550749,-403.96250255,0.00029863,7]
[384930806,1757627550758,-655.45,0.00029863,7]
[384930807,1757627550774,-400.0,0.00029863,7]
[384930808,1757627550797,-593.77,0.00029863,7]
[384930809,1757627550807,-807.62,0.00029863,7]
[384930810,1757627550816,-738.23,0.00029863,7]
[384930811,1757627550826,-567.18,0.00029863,7]
[384930812,1757627550835,-257.06692911,0.00029863,7]
[384930813,1757627550845,-464.24,0.00029863,7]
[384930814,1757627550854,-738.23,0.00029863,7]
[384930815,1757627550863,-400.0,0.00029863,7]
[384930816,1757627550872,-400.0,0.00029863,7]
[384930817,1757627550881,-588.76,0.00029863,7]
[384930818,1757627550890,-607.0,0.00029863,7]
[384930819,1757627550900,-270.58623445,0.00029863,7]
[384930820,1757627550909,-595.56,0.00029863,7]
[384930821,1757627550918,-541.07,0.00029863,7]
[384930822,1757627550927,-439.31,0.00029863,7]
[384930823,1757627550936,-400.0,0.00029863,7]
[384930824,1757627550945,-995.46,0.00029863,7]
[384930825,1757627550955,-339.03502161,0.00029863,7]
[384930826,1757627550964,-1889.23,0.00029863,7]
[384930827,1757627550973,-400.0,0.00029863,7]
[384930828,1757627550982,-1159.7,0.00029863,7]
[384930829,1757627550992,-404.78,0.00029863,7]
[384930830,1757627551002,-400.0,0.00029863,7]
[384930831,1757627551011,-892.23,0.00029863,7]
[384930832,1757627551020,-400.0,0.00029863,7]
[384930833,1757627551030,-568.18,0.00029863,7]
[384930834,1757627551039,-403.03,0.00029863,7]
[384930835,1757627551048,-1401.18,0.00029863,7]
[384930836,1757627551057,-458.22,0.00029863,7]
[384930837,1757627551067,-400.0,0.00029863,7]
[384930838,1757627551075,-1506.44,0.00029863,7]
[384930839,1757627551084,-400.0,0.00029863,7]
[384930840,1757627551094,-653.84,0.00029863,7]
[384930841,1757627551103,-1579.45,0.00029863,7]
[384930842,1757627551113,-223.3970128,0.00029863,7]
[384930843,1757627551123,-596.11,0.00029863,7]
[384930844,1757627551133,-614.15,0.00029863,7]
[384930845,1757627551144,-400.0,0.00029863,7]
[384930846,1757627551155,-400.0,0.00029863,7]
[384930847,1757627551166,-1013.76,0.00029863,7]
[384930848,1757627551176,-400.0,0.00029863,7]
[384930849,1757627551185,-400.0,0.00029863,7]
[384930850,1757627551195,-1714.22,0.00029863,7]
[384930851,1757627551207,-517.47,0.00029863,7]
[384930852,1757627551217,-1096.07,0.00029863,7]
[384930853,1757627551227,-400.0,0.00029863,7]
[384930854,1757627551236,-1253.03,0.00029863,7]
[384930855,1757627551245,-1145.97,0.00029863,7]
[384930856,1757627551254,-1745.67,0.00029863,7]
[384930857,1757627551263,-400.0,0.00029863,7]
[384930858,1757627551273,-727.42,0.00029863,7]
[384930859,1757627551282,-400.0,0.00029863,7]
[384930860,1757627551292,-583.39,0.00029863,7]
[384930861,1757627551301,-400.0,0.00029863,7]
[384930862,1757627551311,-400.0,0.00029863,7]
[384930863,1757627551320,-576.54,0.00029863,7]
[384930864,1757627551330,-400.0,0.00029863,7]
[384930865,1757627551341,-1541.62,0.00029863,7]
[384930866,1757627551352,-921.85,0.00029863,7]
[384930867,1757627551362,-426.23,0.00029863,7]
[384930868,1757627551371,-1433.65,0.00029863,7]
[384930869,1757627551381,-2304.65,0.00029863,7]
[384930870,1757627551390,-1278.47,0.00029863,7]
[384930871,1757627551400,-400.0,0.00029863,7]
[384930872,1757627551409,-506.5,0.00029863,7]
[384930873,1757627551421,-319.55217822,0.00029863,7]
[384930874,1757627551430,-1307.66,0.00029863,7]
[384930875,1757627551440,-400.0,0.00029863,7]
[384930876,1757627551449,-1245.35,0.00029863,7]
[384930877,1757627551459,-1371.0,0.00029863,7]
[384930878,1757627551468,-400.0,0.00029863,7]
[384930879,1757627551478,-400.0,0.00029863,7]
[384930880,1757627551487,-400.0,0.00029863,7]
[384930881,1757627551496,-506.24,0.00029863,7]
[384930882,1757627551507,-400.0,0.00029863,7]
[384930883,1757627551516,-1050.18,0.00029863,7]
[384930884,1757627551526,-400.0,0.00029863,7]
[384930885,1757627551535,-1616.64,0.00029863,7]
[384930886,1757627551544,-1120.7,0.00029863,7]
[384930887,1757627551554,-1151.78,0.00029863,7]
[384930888,1757627551563,-521.28,0.00029863,7]
[384930889,1757627551572,-1013.69,0.00029863,7]
[384930890,1757627551582,-400.0,0.00029863,7]
[384930891,1757627551591,-634.88,0.00029863,7]
[384930892,1757627551600,-400.0,0.00029863,7]
[384930893,1757627551609,-2767.55,0.00029863,7]
[384930894,1757627551619,-1117.29,0.00029863,7]
[384930895,1757627551628,-422.28,0.00029863,7]
[384930896,1757627551637,-428.8,0.00029863,7]
[384930897,1757627551646,-1735.26,0.00029863,7]
[384930898,1757627551655,-1678.88,0.00029863,7]
[384930899,1757627551664,-400.0,0.00029863,7]
[384930900,1757627551674,-522.94,0.00029863,7]
[384930901,1757627551684,-752.82,0.00029863,7]
[384930902,1757627551694,-480.79525462,0.00029863,7]
[384930903,1757627551703,-412.38,0.00029863,7]
[384930904,1757627551712,-2172.72,0.00029863,7]
[384930905,1757627551722,-479.83,0.00029863,7]
[384930906,1757627551732,-400.0,0.00029863,7]
[384930907,1757627551742,-1991.58,0.00029863,7]
[384930908,1757627551751,-645.68,0.00029863,7]
[384930909,1757627551761,-684.67,0.00029863,7]
[384930910,1757627551770,-400.0,0.00029863,7]
[384930911,1757627551779,-1865.74,0.00029863,7]
[384930912,1757627551789,-1236.15,0.00029863,7]
[384930913,1757627551798,-703.53,0.00029863,7]
[384930914,1757627551808,-2285.17,0.00029863,7]
[384930915,1757627551817,-400.0,0.00029863,7]
[384930916,1757627551826,-1603.43,0.00029863,7]
[384930917,1757627551836,-620.1,0.00029863,7]
[384930918,1757627551846,-1983.9,0.00029863,7]
[384930919,1757627551855,-2163.46,0.00029863,7]
[384930920,1757627551865,-941.57,0.00029863,7]
[384930921,1757627551874,-400.0,0.00029863,7]
[384930922,1757627551883,-434.84,0.00029863,7]
[384930923,1757627551893,-1569.39,0.00029863,7]
[384930924,1757627551902,-931.18,0.00029863,7]
[384930925,1757627551911,-400.0,0.00029863,7]
[384930926,1757627551922,-1230.65,0.00029863,7]
[384930927,1757627551931,-2317.42,0.00029863,7]
[384930928,1757627551940,-535.67,0.00029863,7]
[384930929,1757627551951,-644.68,0.00029863,7]
[384930930,1757627551960,-1234.23,0.00029863,7]
[384930931,1757627551971,-919.77,0.00029863,7]
[384930932,1757627551980,-1771.81,0.00029863,7]
[384930933,1757627551989,-400.0,0.00029863,7]
[384930934,1757627551999,-400.0,0.00029863,7]
[384930935,1757627552008,-508.25,0.00029863,7]
[384930936,1757627552018,-2325.79,0.00029863,7]
[384930937,1757627552027,-1609.41,0.00029863,7]
[384930938,1757627552036,-568.33,0.00029863,7]
[384930939,1757627552046,-816.93,0.00029863,7]
[384930940,1757627552055,-1798.92,0.00029863,7]
[384930941,1757627552064,-1386.18,0.00029863,7]
[384930942,1757627552074,-1213.37,0.00029863,7]
[384930943,1757627552084,-400.0,0.00029863,7]
[384930944,1757627552096,-400.0,0.00029863,7]
[384930945,1757627552106,-1552.95,0.00029863,7]
[384930946,1757627552116,-1999.59,0.00029863,7]
[384930947,1757627552126,-400.0,0.00029863,7]
[384930948,1757627552136,-403.06,0.00029863,7]
[384930949,1757627552145,-1732.83,0.00029863,7]
[384930950,1757627552155,-400.0,0.00029863,7]
[384930951,1757627552165,-465.53,0.00029863,7]
[384930952,1757627552174,-400.0,0.00029863,7]
[384930953,1757627552185,-709.04,0.00029863,7]
[384930954,1757627552196,-955.01,0.00029863,7]
[384930955,1757627552205,-400.0,0.00029863,7]
[384930956,1757627552216,-2037.8,0.00029863,7]
[384930957,1757627552226,-400.0,0.00029863,7]
[384930958,1757627552236,-1760.98,0.00029863,7]
[384930959,1757627552246,-1465.12,0.00029863,7]
[384930960,1757627552256,-943.48,0.00029863,7]
[384930961,1757627552266,-897.82,0.00029863,7]
[384930962,1757627552275,-400.0,0.00029863,7]
[384930963,1757627552284,-737.11,0.00029863,7]
[384930964,1757627552293,-674.73,0.00029863,7]
[384930965,1757627552303,-666.9,0.00029863,7]
[384930966,1757627552312,-2358.03,0.00029863,7]
[384930967,1757627552322,-1950.94,0.00029863,7]
[384930968,1757627552331,-781.35,0.00029863,7]
[384930969,1757627552345,-1589.11,0.00029863,7]
[384930970,1757627552355,-1911.65,0.00029863,7]
[384930971,1757627552364,-610.63,0.00029863,7]
[384930972,1757627552374,-645.89,0.00029863,7]
[384930973,1757627552383,-2454.36,0.00029863,7]
[384930974,1757627552394,-400.0,0.00029863,7]
[384930975,1757627552403,-429.42,0.00029863,7]
[384930976,1757627552412,-1761.27,0.00029863,7]
[384930977,1757627552422,-2211.08,0.00029863,7]
[384930978,1757627552431,-1275.46,0.00029863,7]
[384930979,1757627552441,-452.08,0.00029863,7]
[384930980,1757627552450,-903.15,0.00029863,7]
[384930981,1757627552459,-730.4,0.00029863,7]
[384930982,1757627552468,-1244.21,0.00029863,7]
[384930983,1757627552478,-1272.64,0.00029863,7]
[384930984,1757627552487,-2147.52,0.00029863,7]
[384930985,1757627552497,-1608.5,0.00029863,7]
[384930986,1757627552506,-474.19,0.00029863,7]
[384930987,1757627552516,-400.0,0.00029863,2]
[384930988,1757627552525,-468.6,0.00029863,7]
[384930989,1757627552534,-726.05,0.00029863,7]
[384930990,1757627552544,-1333.63,0.00029863,7]
[384930991,1757627552553,-2353.72,0.00029863,7]
[384930992,1757627552562,-2117.57,0.00029863,7]
[384930993,1757627552572,-410.31,0.00029863,7]
[384930994,1757627552581,-400.0,0.00029863,7]
[384930995,1757627552590,-400.0,0.00029863,7]
[384930996,1757627552599,-400.0,0.00029863,7]
[384930997,1757627552608,-792.77,0.00029863,7]
[384930998,1757627552617,-2010.24,0.00029863,7]
[384930999,1757627552626,-564.18,0.00029863,7]
[384931000,1757627552636,-1805.19,0.00029863,7]
[384931001,1757627552646,-400.0,0.00029863,7]
[384931002,1757627552655,-1520.22,0.00029863,7]
[384931003,1757627552664,-825.64,0.00029863,7]
[384931004,1757627552674,-1290.72,0.00029863,7]
[384931005,1757627552683,-1603.55,0.00029863,7]
[384931006,1757627552693,-1459.31,0.00029863,7]
[384931007,1757627552702,-2714.64,0.00029863,7]
[384931008,1757627552712,-909.86,0.00029863,7]
[384931009,1757627552722,-1370.73,0.00029863,7]
[384931010,1757627552731,-2356.36,0.00029863,7]
[384931011,1757627552741,-820.52,0.00029863,7]
[384931012,1757627552751,-1552.2,0.00029863,7]
[384931013,1757627552761,-832.81,0.00029863,7]
[384931014,1757627552770,-980.62,0.00029863,7]
[384931015,1757627552780,-436.16,0.00029863,7]
[384931016,1757627552790,-2368.21,0.00029863,7]
[384931017,1757627552800,-2310.49,0.00029863,7]
[384931018,1757627552810,-751.05,0.00029863,7]
[384931019,1757627552820,-521.56,0.00029863,7]
[384931020,1757627552830,-690.1,0.00029863,7]
[384931021,1757627552839,-614.59,0.00029863,7]
[384931022,1757627552849,-1138.65,0.00029863,7]
[384931023,1757627552859,-1234.09,0.00029863,7]
[384931024,1757627552868,-1139.8,0.00029863,7]
[384931025,1757627552878,-1357.28,0.00029863,7]
[384931026,1757627552887,-483.0,0.00029863,7]
[384931027,1757627552897,-2221.87,0.00029863,7]
[384931028,1757627552906,-764.53,0.00029863,7]
[384931029,1757627552916,-400.0,0.00029863,7]
[384931030,1757627552927,-893.59,0.00029863,7]
[384931031,1757627552937,-616.29,0.00029863,7]
[384931032,1757627552946,-497.07,0.00029863,7]
[384931033,1757627552957,-2494.05,0.00029863,7]
[384931034,1757627552967,-1961.97,0.00029863,7]
[384931035,1757627552977,-715.83,0.00029863,7]
[384931036,1757627552986,-400.0,0.00029863,7]
[384931037,1757627552996,-2400.41,0.00029863,7]
[384931038,1757627553006,-1350.64,0.00029863,7]
[384931039,1757627553015,-400.0,0.00029863,7]
[384931040,1757627553025,-1152.15,0.00029863,7]
[384931041,1757627553035,-1942.36,0.00029863,7]
[384931042,1757627553045,-400.0,0.00029863,7]
[384931043,1757627553055,-1745.53,0.00029863,7]
[384931044,1757627553065,-400.0,0.00029863,7]
[384931045,1757627553075,-1304.87,0.00029863,7]
[384931046,1757627553085,-2239.53,0.00029863,7]
[384931047,1757627553095,-1080.41,0.00029863,7]
[384931048,1757627553105,-1587.86,0.00029863,7]
[384931049,1757627553115,-772.24,0.00029863,7]
[384931050,1757627553125,-1535.99,0.00029863,7]
[384931051,1757627553135,-400.0,0.00029863,7]
[384931052,1757627553145,-681.33,0.00029863,7]
[384931053,1757627553155,-1709.93,0.00029863,7]
[384931054,1757627553165,-827.79,0.00029863,7]
[384931055,1757627553175,-1405.7,0.00029863,7]
[384931056,1757627553185,-1894.71,0.00029863,7]
[384931057,1757627553195,-1305.44,0.00029863,7]
[384931058,1757627553205,-670.2,0.00029863,7]
[384931059,1757627553215,-2336.96,0.00029863,7]
[384931060,1757627553225,-663.76,0.00029863,7]
[384931061,1757627553235,-1721.31,0.00029863,7]
[384931062,1757627553245,-2672.17,0.00029863,7]
[384931063,1757627553256,-1652.48,0.00029863,7]
[384931064,1757627553266,-1555.35,0.00029863,7]
[384931065,1757627553276,-1705.56,0.00029863,7]